bitfinex-derivatives/quotes_BTCF0:USTF0_20260314
["timestamp","ask_amount","ask_price","bid_price","bid_amount"]
[1773461919917,0.26098003,71160.0,71150.0,0.0014]
[1773461920124,0.042152,71160.0,71150.0,0.0014]
[1773461923024,0.21884325,71159.0,71150.0,0.0014]
[1773461923227,0.042152,71160.0,71150.0,0.0014]
[1773461923428,0.2188502,71159.0,71150.0,0.0014]
[1773461923628,0.042152,71160.0,71150.0,0.0014]
[1773461924230,0.21885322,71159.0,71150.0,0.0014]
[1773461924428,0.042152,71160.0,71150.0,0.0014]
[1773461924729,0.21885322,71159.0,71150.0,0.0014]
[1773461924929,0.042152,71160.0,71150.0,0.0014]
[1773461925228,0.21885819,71159.0,71150.0,0.0014]
[1773461925428,0.042152,71160.0,71150.0,0.0014]
[1773461925627,0.21885819,71159.0,71150.0,0.0014]
[1773461925828,0.042152,71160.0,71150.0,0.0014]
[1773461926129,0.21885819,71159.0,71150.0,0.0014]
[1773461926330,0.042152,71160.0,71150.0,0.0014]
[1773461926630,0.21886392,71159.0,71150.0,0.0014]
[1773461926824,0.042152,71160.0,71150.0,0.0014]
[1773461927024,0.21886392,71159.0,71150.0,0.0014]
[1773461927318,0.042152,71160.0,71150.0,0.0014]
[1773461927525,0.21887049,71159.0,71150.0,0.0014]
[1773461927726,0.042152,71160.0,71150.0,0.0014]
[1773461928024,0.21887049,71159.0,71150.0,0.0014]
[1773461928226,0.042152,71160.0,71150.0,0.0014]
[1773461928524,0.21887812,71159.0,71150.0,0.0014]
[1773461928724,0.042152,71160.0,71150.0,0.0014]
[1773461928925,0.21887812,71159.0,71150.0,0.0014]
[1773461929224,0.042152,71160.0,71150.0,0.0014]
[1773461929425,0.21888695,71159.0,71150.0,0.0014]
[1773461929629,0.042152,71160.0,71150.0,0.0014]
[1773461929931,0.21888695,71159.0,71150.0,0.0014]
[1773461930130,0.21888695,71158.0,71150.0,0.0014]
[1773461930333,0.042152,71160.0,71150.0,0.0014]
[1773461930520,0.21889691,71159.0,71150.0,0.0014]
[1773461930720,0.21889691,71158.0,71150.0,0.0014]
[1773461930930,0.042152,71160.0,71150.0,0.0014]
[1773461931129,0.21889691,71159.0,71150.0,0.0014]
[1773461931332,0.21889691,71158.0,71150.0,0.0014]
[1773461931630,0.042152,71160.0,71150.0,0.0014]
[1773461931820,0.21887761,71159.0,71150.0,0.0014]
[1773461932021,0.21887761,71158.0,71151.0,0.0014]
[1773461932227,0.07296734,71160.0,71152.0,0.0014]
[1773461932426,0.21885142,71159.0,71145.0,0.05263112]
[1773461932630,0.21885142,71158.0,71146.0,0.0014]
[1773461932831,0.04416857,71166.0,71146.0,0.0014]
[1773461933033,0.042153,71158.0,71147.0,0.0014]
[1773461933430,0.042153,71158.0,71146.0,0.042159]
[1773461933733,0.042153,71158.0,71147.0,0.0014]
[1773461934833,0.04416857,71166.0,71147.0,0.0014]
[1773461935033,0.21888217,71165.0,71147.0,0.0014]
[1773461935233,0.21888217,71164.0,71147.0,0.0014]
[1773461935528,0.042154,71157.0,71147.0,0.0014]
[1773461939637,0.07296734,71160.0,71148.0,0.0014]
[1773461939833,0.26712731,71159.0,71147.0,0.0014]
[1773461940033,0.042155,71155.0,71147.0,0.0014]
[1773461940440,0.042152,71159.0,71148.0,0.09479012]
[1773461940642,0.2609659,71158.0,71148.0,0.05263112]
[1773461940832,0.042152,71160.0,71148.0,0.09479012]
[1773461941033,0.21881535,71159.0,71148.0,0.09479012]
[1773461941342,0.042152,71160.0,71149.0,0.05263112]
[1773461941642,0.21881166,71159.0,71149.0,0.05263112]
[1773461941841,0.042152,71160.0,71149.0,0.05263112]
[1773461942042,0.2158559,71159.0,71149.0,0.09478912]
[1773461942243,0.042152,71160.0,71149.0,0.09478912]
[1773461942535,0.21586556,71159.0,71149.0,0.09478912]
[1773461942743,0.042152,71160.0,71149.0,0.05263112]
[1773461943042,0.21586602,71159.0,71149.0,0.05263112]
[1773461943242,0.042152,71160.0,71149.0,0.05263112]
[1773461943442,0.21587209,71159.0,71149.0,0.05263112]
[1773461943642,0.042152,71160.0,71149.0,0.05263112]
[1773461943845,0.21587198,71159.0,71149.0,0.05263112]
[1773461944142,0.042152,71160.0,71149.0,0.05263112]
[1773461944343,0.2159196,71159.0,71149.0,0.05263112]
[1773461944642,0.042152,71160.0,71149.0,0.05263112]
[1773461944941,0.04832621,71158.0,71145.0,0.0014]
[1773461945138,0.042154,71156.0,71146.0,0.0014]
[1773461945440,0.042154,71156.0,71147.0,0.0014]
[1773461945630,0.07295887,71160.0,71147.0,0.0014]
[1773461945840,0.21591189,71159.0,71149.0,0.05263112]
[1773461946036,0.21591189,71158.0,71149.0,0.05263112]
[1773461946335,0.042152,71159.0,71149.0,0.05263112]
[1773461946532,0.21584659,71158.0,71149.0,0.05263112]
[1773461946737,0.042152,71159.0,71149.0,0.05263112]
[1773461946941,0.215847,71158.0,71149.0,0.05263112]
[1773461947142,0.042151,71161.0,71149.0,0.05263112]
[1773461947342,0.25799877,71160.0,71149.0,0.05263112]
[1773461947542,0.21584677,71159.0,71150.0,0.05263112]
[1773461947836,0.21584677,71158.0,71150.0,0.05263112]
[1773461948031,0.042152,71160.0,71150.0,0.05263112]
[1773461948233,0.21584422,71159.0,71150.0,0.05263112]
[1773461948434,0.21584422,71158.0,71150.0,0.05263112]
[1773461948637,0.042152,71160.0,71150.0,0.05263112]
[1773461948841,0.21584254,71159.0,71149.0,0.042158]
[1773461949043,0.21584254,71158.0,71147.0,0.043559]
[1773461949341,0.21586203,71157.0,71147.0,0.043559]
[1773461949642,0.042152,71159.0,71147.0,0.043559]
[1773461949843,0.2642134,71158.0,71132.0,0.05263112]
[1773461950037,0.07295887,71150.0,71133.0,0.0014]
[1773461950243,0.26416417,71149.0,71134.0,0.0014]
[1773461950439,0.04832621,71147.0,71121.0,0.00018152]
[1773461950646,0.042164,71140.0,71127.0,0.042171]
[1773461951243,0.04832621,71145.0,71127.0,0.042171]
[1773461951244,0.042165,71138.0,71128.0,0.0014]
[1773461951437,0.042165,71138.0,71129.0,0.0014]
[1773461951843,0.042165,71138.0,71127.0,0.042171]
[1773461952043,0.042165,71138.0,71128.0,0.0014]
[1773461952248,0.042165,71138.0,71122.0,0.05263112]
[1773461952541,0.042165,71138.0,71126.0,0.042171]
[1773461952751,0.042165,71138.0,71127.0,0.0014]
[1773461953247,0.042165,71138.0,71126.0,0.042171]
[1773461953448,0.042165,71138.0,71127.0,0.0014]
[1773461953849,0.042165,71138.0,71128.0,0.0014]
[1773461954354,0.042165,71138.0,71129.0,0.0014]
[1773461954647,0.042165,71138.0,71130.0,0.0014]
[1773461955148,0.042165,71138.0,71131.0,0.0014]
[1773461955541,0.042165,71138.0,71126.0,0.042171]
[1773461955849,0.042164,71140.0,71132.0,0.0014]
[1773461956049,0.042164,71140.0,71133.0,0.0014]
[1773461959753,0.042164,71139.0,71133.0,0.0014]
[1773461960853,0.04832621,71165.0,71143.0,0.05263112]
[1773461961045,0.21530036,71164.0,71144.0,0.05403112]
[1773461961242,0.04832621,71165.0,71144.0,0.09619212]
[1773461961243,0.042154,71157.0,71144.0,0.09619212]
[1773461961448,0.042154,71156.0,71144.0,0.09619212]
[1773461961650,0.04832621,71165.0,71144.0,0.09619212]
[1773461961651,0.042155,71155.0,71144.0,0.05403112]
[1773461963146,0.042155,71155.0,71144.0,0.09619212]
[1773461963354,0.042154,71157.0,71145.0,0.04216]
[1773461964349,0.042154,71156.0,71145.0,0.04216]
[1773461965646,0.042151,71161.0,71145.0,0.04856017]
[1773461965846,0.042152,71160.0,71148.0,0.042159]
[1773461966358,0.042153,71158.0,71146.0,0.04216]
[1773461966546,0.042153,71158.0,71146.0,0.09072017]
[1773461967753,0.042153,71158.0,71147.0,0.042159]
[1773461968755,0.042153,71158.0,71147.0,0.09071917]
[1773461969452,0.05181729,71176.0,71149.0,0.042158]
[1773461969648,0.26722285,71175.0,71155.0,0.04856017]
[1773461969953,0.21680556,71174.0,71156.0,0.0014]
[1773461970157,0.042147,71169.0,71157.0,0.04856017]
[1773461970343,0.042147,71168.0,71157.0,0.04856017]
[1773461971754,0.042146,71170.0,71159.0,0.042152]
[1773461971949,0.042146,71170.0,71157.0,0.09071317]
[1773461972150,0.042147,71169.0,71157.0,0.09071317]
[1773461973755,0.042145,71171.0,71158.0,0.042152]
[1773461974358,0.042146,71170.0,71158.0,0.042152]
[1773461974859,0.042147,71169.0,71157.0,0.04856017]
[1773461975857,0.042146,71171.0,71157.0,0.04856017]
[1773461976047,0.042146,71170.0,71158.0,0.042153]
[1773461976250,0.05321729,71177.0,71158.0,0.042153]
[1773461976447,0.05321729,71177.0,71158.0,0.09071317]
[1773461977056,0.05321729,71177.0,71158.0,0.04856017]
[1773461977453,0.042146,71169.0,71158.0,0.04856017]
[1773461977654,0.042146,71169.0,71158.0,0.09071317]
[1773461977853,0.042146,71169.0,71159.0,0.04856017]
[1773461989464,0.042148,71167.0,71156.0,0.0014]
[1773461990468,0.042147,71169.0,71157.0,0.042153]
[1773461990869,0.042147,71168.0,71157.0,0.042153]
[1773461992064,0.04749292,71179.0,71156.0,0.0014]
[1773461992272,0.042145,71171.0,71160.0,0.042151]
[1773461992573,0.042145,71171.0,71160.0,0.09122433]
[1773461992971,0.042144,71173.0,71161.0,0.09122433]
[1773461993166,0.00070243,71181.0,71167.0,0.04907333]
[1773461993474,0.042142,71177.0,71169.0,0.04907333]
[1773461993674,0.042142,71177.0,71169.0,0.04911336]
[1773461994562,0.042142,71176.0,71169.0,0.04911336]
[1773461994762,0.042142,71176.0,71169.0,4.003e-05]
[1773461998670,0.042143,71175.0,71169.0,4.003e-05]
[1773461998876,0.042143,71175.0,71168.0,0.0014]
[1773462001774,0.00070243,71181.0,71169.0,0.0014]
[1773462001775,0.07295887,71180.0,71169.0,0.0014]
[1773462001974,0.04749292,71174.0,71149.0,0.04907333]
[1773462002176,0.042148,71167.0,71150.0,0.0014]
[1773462002375,0.042148,71167.0,71151.0,0.0014]
[1773462002577,0.07295887,71161.0,71146.0,0.0014]
[1773462002771,0.04749292,71165.0,71147.0,0.043559]
[1773462003074,0.042152,71161.0,71148.0,0.042158]
[1773462003277,0.04215,71163.0,71150.0,0.042157]
[1773462003789,0.04215,71163.0,71151.0,0.04907333]
[1773462005279,0.042151,71162.0,71151.0,0.04907333]
[1773462010177,0.04144537,71162.0,71151.0,0.04907333]
[1773462011476,0.04144537,71162.0,71150.0,0.042157]
[1773462011672,0.042152,71161.0,71148.0,0.042158]
[1773462011987,0.042152,71161.0,71149.0,0.042158]
[1773462019183,0.042152,71160.0,71149.0,0.042158]
[1773462020193,0.042152,71160.0,71150.0,0.0014]
[1773462020687,0.042152,71160.0,71151.0,0.0014]
[1773462021087,0.042152,71160.0,71152.0,0.0014]
[1773462021592,0.042152,71160.0,71153.0,0.0014]
[1773462023492,0.042152,71160.0,71149.0,0.042158]
[1773462023794,0.042152,71160.0,71150.0,0.0014]
[1773462023997,0.042152,71160.0,71149.0,0.042158]
[1773462024195,0.042152,71160.0,71150.0,0.0014]
[1773462024584,0.042152,71160.0,71151.0,0.0014]
[1773462024985,0.042152,71160.0,71149.0,0.042158]
[1773462025193,0.042152,71160.0,71150.0,0.0014]
[1773462029693,0.042152,71160.0,71150.0,0.043557]
[1773462031598,0.042152,71160.0,71150.0,0.0014]
[1773462035195,0.042152,71160.0,71150.0,0.043557]
[1773462035395,0.042151,71162.0,71150.0,0.043557]
[1773462035694,0.21662579,71161.0,71150.0,0.043557]
[1773462035891,0.042151,71162.0,71150.0,0.043557]
[1773462036096,0.25877679,71161.0,71150.0,0.043557]
[1773462036297,0.042151,71161.0,71150.0,0.043557]
[1773462052124,0.0597414,71189.0,71151.0,0.04277603]
[1773462052415,0.042142,71177.0,71161.0,0.04277603]
[1773462052611,0.042142,71176.0,71166.0,0.04277603]
[1773462053619,0.042141,71178.0,71167.0,0.04277603]
[1773462053922,0.00070243,71181.0,71167.0,0.04277603]
[1773462054411,0.00070243,71181.0,71168.0,0.0014]
[1773462054612,0.042142,71176.0,71168.0,0.0014]
[1773462067224,0.00070243,71181.0,71168.0,0.0014]
[1773462067425,0.042142,71177.0,71168.0,0.0014]
[1773462067623,0.042143,71176.0,71168.0,0.0014]
[1773462071131,0.042143,71175.0,71168.0,0.0014]
[1773462071332,0.042142,71177.0,71168.0,0.0014]
[1773462073332,0.00070243,71181.0,71168.0,0.0014]
[1773462074033,0.042142,71177.0,71168.0,0.0014]
[1773462074634,0.00070243,71181.0,71169.0,0.0014]
[1773462074832,0.00070243,71181.0,71170.0,0.0014]
[1773462075028,0.00070243,71181.0,71171.0,0.0014]
[1773462075530,0.20518959,71180.0,71171.0,0.0014]
[1773462075733,0.00070243,71181.0,71171.0,0.0014]
[1773462076037,0.20518959,71180.0,71171.0,0.0014]
[1773462076236,0.00070243,71181.0,71171.0,0.0014]
[1773462076534,0.20522151,71180.0,71171.0,0.0014]
[1773462076721,0.00070243,71181.0,71171.0,0.0014]
[1773462076926,0.042142,71177.0,71171.0,0.0014]
[1773462077330,0.042142,71176.0,71171.0,0.0014]
[1773462084637,0.11564893,71181.0,71158.0,0.04112392]
[1773462084838,0.1149465,71170.0,71159.0,0.0014]
[1773462085037,0.1149465,71170.0,71158.0,0.0014]
[1773462085038,0.04203678,71168.0,71158.0,0.0014]
[1773462085243,0.07290972,71170.0,71156.0,0.0014]
[1773462085244,0.04203678,71166.0,71156.0,0.0014]
[1773462085441,0.04203678,71166.0,71155.0,0.0014]
[1773462085632,0.042151,71162.0,71155.0,0.0014]
[1773462087537,0.24757604,71161.0,71139.0,0.04112392]
[1773462087736,0.042155,71156.0,71139.0,0.04112392]
[1773462087946,0.042155,71156.0,71143.0,0.042161]
[1773462088346,0.0014,71163.0,71145.0,0.04216]
[1773462088546,0.042155,71155.0,71146.0,0.0014]
[1773462088745,0.042154,71157.0,71147.0,0.0014]
[1773462089344,0.04203678,71158.0,71147.0,0.00121316]
[1773462090946,0.042155,71155.0,71147.0,0.00121316]
[1773462091339,0.042156,71154.0,71147.0,0.00121316]
[1773462091541,0.042158,71150.0,71139.0,0.04147786]
[1773462091738,0.042157,71152.0,71139.0,0.08364186]
[1773462091938,0.042157,71151.0,71140.0,0.04147786]
[1773462092136,0.042157,71151.0,71141.0,0.0014]
[1773462094145,0.042158,71150.0,71141.0,0.0014]
[1773462095945,0.01752793,71158.0,71141.0,0.0014]
[1773462096451,0.042161,71145.0,71130.0,0.0014]
[1773462096645,0.042161,71145.0,71133.0,0.042167]
[1773462098043,0.042165,71137.0,71124.0,0.04112392]
[1773462098239,0.042161,71145.0,71132.0,0.042168]
[1773462098448,0.07290972,71160.0,71136.0,0.04112392]
[1773462098449,0.0014,71153.0,71136.0,0.04112392]
[1773462098638,0.0014,71154.0,71137.0,0.0014]
[1773462099042,0.0150047,71159.0,71137.0,0.0014]
[1773462099243,0.01564708,71157.0,71137.0,0.0014]
[1773462099537,0.042159,71149.0,71137.0,0.04252392]
[1773462100047,0.0014,71160.0,71140.0,0.042163]
[1773462100243,0.20850409,71159.0,71141.0,0.04112392]
[1773462100438,0.01720574,71161.0,71137.0,0.0014]
[1773462100747,0.01824653,71166.0,71144.0,0.04112392]
[1773462101054,0.042155,71155.0,71145.0,0.0014]
[1773462104454,0.042153,71159.0,71147.0,0.042159]
[1773462104650,0.01824653,71165.0,71145.0,0.04252392]
[1773462104855,0.042152,71160.0,71148.0,0.042159]
[1773462105157,0.042152,71160.0,71148.0,0.08328292]
[1773462105957,0.042153,71159.0,71148.0,0.04112392]
[1773462106351,0.042153,71158.0,71148.0,0.04112392]
[1773462108955,0.01944058,71166.0,71145.0,0.0014]
[1773462109157,0.01804058,71164.0,71145.0,0.0014]
[1773462109357,0.09064367,71160.0,71146.0,0.00032917]
[1773462109562,0.20863415,71163.0,71152.0,0.0398941]
[1773462109563,0.04215,71163.0,71152.0,0.0398941]
[1773462109961,0.042151,71162.0,71152.0,0.0398941]
[1773462111254,0.042149,71164.0,71153.0,0.04031488]
[1773462111854,0.040149,71164.0,71153.0,0.04031488]
[1773462113661,0.04215,71163.0,71153.0,0.04031488]
[1773462113857,0.042151,71161.0,71151.0,0.0014]
[1773462114358,0.042151,71161.0,71151.0,0.04162243]
[1773462121356,0.04215,71163.0,71151.0,0.04162243]
[1773462121563,0.04215,71163.0,71152.0,0.04020093]
[1773462122665,0.042151,71162.0,71152.0,0.04020093]
[1773462130362,0.042149,71165.0,71152.0,0.04020093]
[1773462131970,0.042149,71165.0,71154.0,0.042155]
[1773462132171,0.042149,71165.0,71155.0,0.04020093]
[1773462133175,0.042148,71166.0,71155.0,0.04020093]
[1773462136588,0.07293975,71180.0,71157.0,0.04020093]
[1773462136781,0.20969271,71179.0,71165.0,0.04020093]
[1773462137081,0.00070243,71181.0,71165.0,0.04160093]
[1773462137082,0.20969271,71178.0,71165.0,0.04160093]
[1773462137275,0.042144,71174.0,71165.0,0.04160093]
[1773462137673,0.00070243,71181.0,71165.0,0.04160093]
[1773462137872,0.20965965,71180.0,71165.0,0.04160093]
[1773462138079,0.042145,71171.0,71165.0,0.0014]
[1773462139892,0.0098362,71174.0,71159.0,0.0014]
[1773462140088,0.042149,71164.0,71159.0,0.0014]
[1773462140481,0.07293975,71170.0,71159.0,0.0014]
[1773462140798,0.042149,71166.0,71160.0,0.0014]
[1773462141888,0.07293975,71170.0,71152.0,0.042156]
[1773462142194,0.04215,71163.0,71153.0,0.0014]
[1773462142489,0.042151,71161.0,71153.0,0.0014]
[1773462142690,0.042152,71160.0,71153.0,0.0014]
[1773462144282,0.042151,71162.0,71153.0,0.0014]
[1773462150797,0.042151,71161.0,71153.0,0.0014]
[1773462151496,0.0014,71172.0,71154.0,0.03997011]
[1773462151698,0.042148,71166.0,71155.0,0.042154]
[1773462151898,0.042148,71166.0,71155.0,0.08211792]
[1773462152794,0.042148,71167.0,71156.0,0.03996192]
[1773462152995,0.25117774,71166.0,71156.0,0.03996192]
[1773462153293,0.042148,71166.0,71156.0,0.03996192]
[1773462157001,0.042147,71168.0,71156.0,0.03996192]
[1773462157200,0.20902722,71167.0,71156.0,0.03996192]
[1773462157395,0.0014,71174.0,71156.0,0.03996192]
[1773462157597,0.20902161,71173.0,71156.0,0.03996192]
[1773462157902,0.20902161,71172.0,71156.0,0.03996192]
[1773462158092,0.20902161,71171.0,71154.0,0.03996341]
[1773462158397,0.25116761,71170.0,71160.0,0.03996341]
[1773462158695,0.20902161,71169.0,71160.0,0.04136341]
[1773462158900,0.042146,71170.0,71160.0,0.04136341]
[1773462159093,0.20900771,71169.0,71160.0,0.04136341]
[1773462159400,0.042146,71170.0,71160.0,0.04136341]
[1773462159601,0.20900619,71169.0,71160.0,0.04136341]
[1773462159901,0.042146,71170.0,71160.0,0.04136341]
[1773462160101,0.20890564,71169.0,71160.0,0.04136341]
[1773462160401,0.042146,71170.0,71160.0,0.04136341]
[1773462160597,0.042147,71169.0,71160.0,0.04136341]
[1773462162105,0.042145,71171.0,71160.0,0.04136341]
[1773462162704,0.042146,71170.0,71160.0,0.04136341]
[1773462171217,0.042147,71169.0,71160.0,0.04136341]
[1773462180213,0.00070243,71181.0,71164.0,0.03977059]
[1773462180417,0.07293975,71174.0,71156.0,0.03977059]
[1773462180612,0.07293975,71170.0,71157.0,0.0014]
[1773462181722,0.042148,71167.0,71157.0,0.0014]
[1773462181925,0.04215,71164.0,71157.0,0.0014]
[1773462182226,0.20900278,71169.0,71151.0,0.0014]
[1773462182519,0.07293975,71170.0,71151.0,0.0014]
[1773462182824,0.20900278,71169.0,71151.0,0.0014]
[1773462183025,0.04215,71164.0,71151.0,0.043557]
[1773462185729,0.04215,71164.0,71152.0,0.04134731]
[1773462188132,0.04215,71164.0,71152.0,0.08350331]
[1773462188428,0.02613742,71191.0,71166.0,0.03679766]
[1773462188627,0.042142,71177.0,71167.0,0.0014]
[1773462190935,0.20900278,71176.0,71167.0,0.0014]
[1773462194844,0.20900278,71176.0,71168.0,0.03679766]
[1773462199545,0.042141,71179.0,71168.0,0.03679766]
[1773462199843,0.20660278,71178.0,71168.0,0.03679766]
[1773462202646,0.20660278,71178.0,71168.0,0.07894466]
[1773462211753,0.24874378,71178.0,71167.0,0.0014]
[1773462212252,0.24874378,71178.0,71167.0,0.043547]
[1773462213351,0.02365664,71174.0,71150.0,0.04123593]
[1773462213551,0.26859039,71173.0,71152.0,0.042156]
[1773462213752,0.02745183,71172.0,71152.0,0.042156]
[1773462213952,0.02745183,71170.0,71151.0,0.0014]
[1773462214851,0.02745183,71170.0,71152.0,0.042156]
[1773462215053,0.042149,71165.0,71153.0,0.042156]
[1773462215252,0.042149,71165.0,71151.0,0.0014]
[1773462215253,0.042149,71165.0,71154.0,0.042155]
[1773462216151,0.20660278,71164.0,71158.0,0.042153]
[1773462216355,0.042147,71169.0,71158.0,0.043553]
[1773462216849,0.042148,71167.0,71158.0,0.0014]
[1773462221965,0.20660278,71166.0,71158.0,0.0014]
[1773462222165,0.042149,71165.0,71158.0,0.0014]
[1773462222565,0.20660278,71166.0,71158.0,0.0014]
[1773462227768,0.20660278,71166.0,71158.0,0.04166238]
[1773462228869,0.20660278,71166.0,71158.0,0.08381438]
[1773462229171,0.20660278,71166.0,71158.0,0.043552]
[1773462229670,0.042147,71169.0,71158.0,0.043552]
[1773462229969,0.20660278,71168.0,71158.0,0.043552]
[1773462230466,0.20660278,71168.0,71158.0,1e-06]
[1773462230770,0.04215,71164.0,71156.0,0.0014]
[1773462231070,0.04215,71164.0,71155.0,0.0014]
[1773462235578,7.8e-07,71163.0,71156.0,0.03954606]
[1773462235867,0.0014,71184.0,71165.0,0.03954606]
[1773462236066,0.042142,71177.0,71166.0,0.04094606]
[1773462236367,0.042142,71176.0,71166.0,0.04094606]
[1773462239672,0.042143,71175.0,71166.0,0.04094606]
[1773462240270,0.19565185,71174.0,71166.0,0.04094606]
[1773462240471,0.19565185,71173.0,71166.0,0.04094606]
[1773462240769,0.0014,71183.0,71168.0,0.08169206]
[1773462240973,0.042141,71179.0,71168.0,0.08169206]
[1773462241173,0.19566116,71178.0,71168.0,0.08169206]
[1773462241370,0.19566116,71177.0,71168.0,0.08169206]
[1773462241675,0.19566116,71176.0,71168.0,0.08169206]
[1773462241971,0.19566116,71175.0,71168.0,0.03954606]
[1773462242177,0.19566116,71174.0,71168.0,0.03954606]
[1773462242475,0.042141,71178.0,71168.0,0.03954606]
[1773462242677,0.19672464,71177.0,71168.0,0.03954606]
[1773462242874,0.19672464,71176.0,71168.0,0.03954606]
[1773462243079,0.19672464,71175.0,71168.0,0.03954606]
[1773462243278,0.19672464,71174.0,71168.0,0.03954606]
[1773462243576,0.042141,71178.0,71168.0,0.03954606]
[1773462243777,0.19674338,71177.0,71168.0,0.03954606]
[1773462244074,0.19674338,71176.0,71168.0,0.03954606]
[1773462244263,0.19674338,71175.0,71168.0,0.03954606]
[1773462244461,0.19674338,71174.0,71168.0,0.03954606]
[1773462244664,0.042141,71178.0,71168.0,0.03954606]
[1773462244873,0.19673147,71177.0,71168.0,0.03954606]
[1773462245075,0.19673147,71176.0,71168.0,0.03954606]
[1773462245268,0.19673147,71175.0,71168.0,0.03954606]
[1773462245475,0.19673147,71174.0,71168.0,0.03954606]
[1773462245675,0.042141,71178.0,71168.0,0.03954606]
[1773462245880,0.0014,71184.0,71166.0,0.043548]
[1773462245881,0.23886616,71177.0,71166.0,0.043548]
[1773462246173,0.19672416,71176.0,71166.0,0.043548]
[1773462246364,0.19672416,71175.0,71166.0,0.043548]
[1773462246567,0.19672416,71174.0,71166.0,0.043548]
[1773462246767,0.042142,71177.0,71166.0,0.043548]
[1773462247070,0.19671443,71176.0,71168.0,0.042146]
[1773462247270,0.19671443,71175.0,71168.0,0.042146]
[1773462247472,0.19671443,71174.0,71168.0,0.042146]
[1773462247675,0.042141,71179.0,71168.0,0.042146]
[1773462247973,0.19670555,71178.0,71168.0,0.042146]
[1773462248173,0.042141,71179.0,71168.0,0.042146]
[1773462248174,0.19670555,71177.0,71168.0,0.042146]
[1773462248376,0.19670555,71176.0,71168.0,0.042146]
[1773462248570,0.19670555,71175.0,71169.0,0.03954606]
[1773462248771,0.04214,71180.0,71169.0,0.03954606]
[1773462249078,0.19669555,71179.0,71169.0,0.03954606]
[1773462249278,0.19669555,71178.0,71169.0,0.03954606]
[1773462249578,0.19669555,71177.0,71169.0,0.03954606]
[1773462249779,0.19669555,71176.0,71169.0,0.03954606]
[1773462249978,0.19669555,71175.0,71169.0,0.03954606]
[1773462250274,0.04214,71180.0,71169.0,0.03954606]
[1773462250479,0.19667886,71179.0,71169.0,0.03954606]
[1773462250672,0.04214,71180.0,71169.0,0.03954606]
[1773462250979,0.19667886,71179.0,71169.0,0.03954606]
[1773462251178,0.04214,71180.0,71169.0,0.03954606]
[1773462251379,0.19667166,71179.0,71169.0,0.03954606]
[1773462251579,0.04214,71180.0,71169.0,0.03954606]
[1773462251779,0.19667166,71179.0,71169.0,0.03954606]
[1773462251975,0.04214,71180.0,71169.0,0.03954606]
[1773462252180,0.19667166,71179.0,71169.0,0.03954606]
[1773462252381,0.04214,71180.0,71169.0,0.03954606]
[1773462252582,0.19666519,71179.0,71169.0,0.03954606]
[1773462252779,0.04214,71180.0,71169.0,0.03954606]
[1773462252981,0.19666519,71179.0,71169.0,0.03954606]
[1773462253181,0.04214,71180.0,71169.0,0.03954606]
[1773462253380,0.19666653,71179.0,71169.0,0.03954606]
[1773462253583,0.04214,71180.0,71168.0,0.042146]
[1773462253782,0.19666657,71179.0,71168.0,0.042146]
[1773462253978,0.04214,71180.0,71168.0,0.042146]
[1773462254282,0.19666657,71179.0,71168.0,0.042146]
[1773462254482,0.04214,71180.0,71168.0,0.042146]
[1773462254683,0.23881084,71179.0,71168.0,0.042146]
[1773462254882,0.042141,71179.0,71168.0,0.042146]
[1773462256186,0.19668209,71178.0,71168.0,0.042146]
[1773462256378,0.042141,71179.0,71168.0,0.042146]
[1773462256578,0.19668209,71178.0,71168.0,0.042146]
[1773462256886,0.042141,71179.0,71168.0,0.042146]
[1773462257085,0.19668209,71178.0,71168.0,0.042146]
[1773462257275,0.042141,71179.0,71168.0,0.042146]
[1773462257476,0.19669115,71178.0,71168.0,0.042146]
[1773462257775,0.042141,71179.0,71168.0,0.042146]
[1773462257978,0.19669115,71178.0,71168.0,0.042146]
[1773462258185,0.042141,71179.0,71168.0,0.042146]
[1773462258385,0.19670194,71178.0,71168.0,0.042146]
[1773462258695,0.042141,71179.0,71168.0,0.042146]
[1773462258994,0.19670194,71178.0,71168.0,0.042146]
[1773462259194,0.042141,71179.0,71168.0,0.042146]
[1773462259394,0.19671498,71178.0,71168.0,0.042146]
[1773462259597,0.042141,71179.0,71168.0,0.042146]
[1773462259898,0.19671498,71178.0,71168.0,0.042146]
[1773462260096,0.042141,71179.0,71168.0,0.042146]
[1773462260292,0.23887152,71178.0,71166.0,0.08309406]
[1773462260595,0.11504508,71180.0,71167.0,0.042147]
[1773462260795,0.11504508,71180.0,71168.0,0.042147]
[1773462260796,0.19673052,71179.0,71168.0,0.042147]
[1773462260996,0.19673052,71178.0,71168.0,0.042147]
[1773462261200,0.04214,71180.0,71168.0,0.042147]
[1773462261492,0.19675498,71179.0,71168.0,0.042147]
[1773462261698,0.19675498,71178.0,71168.0,0.042147]
[1773462261896,0.04214,71180.0,71168.0,0.042147]
[1773462262096,0.19675498,71179.0,71168.0,0.042147]
[1773462262298,0.19675498,71178.0,71168.0,0.042147]
[1773462262499,0.19675498,71177.0,71168.0,0.042147]
[1773462262698,0.04214,71180.0,71168.0,0.042147]
[1773462262998,0.19678559,71179.0,71168.0,0.042147]
[1773462263193,0.04214,71180.0,71169.0,0.042146]
[1773462265299,0.19693093,71179.0,71169.0,0.042146]
[1773462265594,0.04214,71180.0,71169.0,0.042146]
[1773462265796,0.19693093,71179.0,71169.0,0.042146]
[1773462265996,0.04214,71180.0,71169.0,0.042146]
[1773462266198,0.19693093,71179.0,71169.0,0.042146]
[1773462266396,0.04214,71180.0,71169.0,0.042146]
[1773462266596,0.19692009,71179.0,71169.0,0.042146]
[1773462266797,0.04214,71180.0,71169.0,0.042146]
[1773462266996,0.19692009,71179.0,71169.0,0.042146]
[1773462267196,0.04214,71180.0,71169.0,0.042146]
[1773462273405,0.042141,71179.0,71167.0,0.042147]
[1773462275002,0.042141,71179.0,71168.0,0.042147]
[1773462275710,0.0232967,71179.0,71160.0,0.081892]
[1773462275912,0.0232967,71179.0,71161.0,0.0014]
[1773462277107,0.042145,71172.0,71161.0,0.0014]
[1773462282516,0.042145,71172.0,71162.0,0.039741]
[1773462282714,0.042144,71174.0,71162.0,0.04215]
[1773462283312,0.042144,71173.0,71162.0,0.04215]